bitfinex/quotes_ETHUSD_20250329
["timestamp","ask_amount","ask_price","bid_price","bid_amount"]
[1743234820037,3.0,1883.8,1883.5,6.86071407]
[1743234820239,8.30857,1883.8,1883.5,1.55153407]
[1743234820542,11.66138032,1883.8,1883.5,1.55153407]
[1743234820741,11.66138032,1883.8,1883.5,29.65853407]
[1743234821941,16.97004032,1883.8,1883.5,29.65853407]
[1743234822246,6.11994,1883.7,1883.5,29.65853407]
[1743234822711,9.47275032,1883.7,1883.5,29.65853407]
[1743234823542,5.30898,1883.6,1883.5,28.107]
[1743234824943,6.12018,1883.6,1883.5,28.107]
[1743234825444,5.30936,1883.5,1883.2,0.73576188]
[1743234825647,9.11965,1883.8,1883.3,6.08385]
[1743234825846,17.78110032,1883.8,1883.3,0.7742]
[1743234826045,17.78110032,1883.8,1883.3,6.08388]
[1743234826264,17.78110032,1883.8,1883.4,0.608388]
[1743234826545,5.30876,1883.7,1883.4,0.608388]
[1743234827748,5.30876,1883.7,1883.4,0.66147787]
[1743234828255,5.30876,1883.7,1883.4,0.608388]
[1743234828455,5.30876,1883.7,1883.4,0.66147787]
[1743234829045,5.30876,1883.7,1883.4,0.608388]
[1743234829346,5.30876,1883.7,1883.4,0.66147788]
[1743234829536,5.30876,1883.7,1883.4,0.608388]
[1743234831754,5.30876,1883.7,1883.4,0.6614779]
[1743234832054,17.78108032,1883.8,1883.4,5.9709979]
[1743234832252,5.30871,1883.7,1883.4,0.6614779]
[1743234832567,5.30871,1883.7,1883.4,0.608388]
[1743234832873,10.61765,1883.7,1883.4,0.608388]
[1743234833439,7.16401032,1883.8,1883.2,0.73576188]
[1743234833440,5.30926,1883.5,1883.2,0.73576188]
[1743234835457,9.46511032,1883.6,1883.2,6.04585188]
[1743234835767,8.66181032,1883.6,1883.2,6.04585188]
[1743234837169,13.97102032,1883.6,1883.2,6.04585188]
[1743234837471,5.30927,1883.5,1883.2,0.73576188]
[1743234839071,13.97105032,1883.6,1883.2,6.0988172]
[1743234839268,3.35281032,1883.6,1883.3,5.91964172]
[1743234839468,3.35281032,1883.6,1883.3,0.60988172]
[1743234839772,13.97116032,1883.6,1883.3,0.60988172]
[1743234839935,13.97116032,1883.6,1883.2,6.04572188]
[1743234840138,13.97116032,1883.6,1883.2,6.09881721]
[1743234840370,13.97116032,1883.6,1883.2,6.04572188]
[1743234840766,13.97116032,1883.6,1883.2,6.09881723]
[1743234840767,8.66194032,1883.6,1883.2,6.09881723]
[1743234840969,0.8033,1883.7,1883.4,5.30939]
[1743234841177,6.11201,1883.7,1883.4,1.143181]
[1743234841973,5.30871,1883.7,1883.4,1.143181]
[1743234843886,5.30899,1883.6,1883.4,1.143181]
[1743234844056,5.30899,1883.6,1883.3,0.8126]
[1743234844679,8.66180032,1883.6,1883.3,28.103]
[1743234844885,9.45670032,1883.6,1883.3,28.103]
[1743234845875,4.14771032,1883.6,1883.3,33.41272]
[1743234846179,3.35281032,1883.6,1883.3,33.41272]
[1743234846380,3.35281032,1883.6,1883.4,3.341272]
[1743234848675,8.66181032,1883.6,1883.4,3.341272]
[1743234849670,8.66181032,1883.6,1883.2,34.14882188]
[1743234850578,8.66181032,1883.6,1883.2,39.45872188]
[1743234850775,8.66181032,1883.6,1883.2,34.14866188]
[1743234853356,13.97103032,1883.6,1883.2,34.14866188]
[1743234853562,5.30982,1883.3,1883.2,28.103]
[1743234853865,6.10472,1883.3,1883.2,28.103]
[1743234854780,0.7949,1883.3,1883.2,28.103]
[1743234855077,3.35281032,1883.6,1883.2,28.103]
[1743234855282,3.35281032,1883.6,1883.3,2.8103]
[1743234856085,8.66181032,1883.6,1883.3,2.8103]
[1743234858289,13.97102032,1883.6,1883.3,2.8103]
[1743234858589,8.66181032,1883.6,1883.3,2.8103]
[1743234860560,13.97106032,1883.6,1883.3,2.8103]
[1743234861679,5.30927,1883.5,1883.3,2.8103]
[1743234863185,5.30927,1883.5,1883.2,28.103]
[1743234866897,3.35281032,1883.4,1883.2,28.103]
[1743234867288,4.12251032,1883.4,1883.2,28.103]
[1743234867692,9.43216032,1883.4,1883.2,28.103]
[1743234868066,5.30982,1883.3,1883.2,28.103]
[1743234870995,9.43216032,1883.4,1883.2,28.103]
[1743234871302,5.31052,1883.1,1882.6,0.7615]
[1743234871491,8.66427032,1882.8,1882.4,6.07385]
[1743234871797,5.31162,1882.7,1882.4,0.7615]
[1743234872181,13.97566032,1882.8,1882.4,0.7615]
[1743234872381,5.31156,1882.7,1882.4,0.7615]
[1743234872894,8.66464032,1882.6,1882.4,3.52397425]
[1743234873485,3.35281032,1882.6,1882.4,3.52397425]
[1743234874375,8.66461032,1882.6,1882.4,3.52397425]
[1743234875587,3.35281032,1882.5,1882.4,3.52397425]
[1743234876105,8.66461032,1882.6,1882.4,3.52397425]
[1743234881276,3.0,1882.8,1882.5,1.10379743]
[1743234881477,3.0,1882.8,1882.5,6.41570743]
[1743234881877,8.66333032,1883.1,1882.8,0.7514]
[1743234882078,13.97395032,1883.1,1882.8,0.7514]
[1743234882484,8.66333032,1883.1,1882.8,0.7514]
[1743234882697,5.31074,1883.0,1882.7,0.7514]
[1743234882898,5.31074,1883.0,1882.7,1.357713]
[1743234882899,8.66355032,1883.0,1882.7,1.357713]
[1743234884008,9.45475032,1883.0,1882.7,0.606313]
[1743234884177,3.35281032,1882.9,1882.5,11.44386743]
[1743234884381,8.66388032,1882.9,1882.5,11.44386743]
[1743234885610,8.66388032,1882.9,1882.5,16.75582743]
[1743234885810,4.14401032,1883.0,1882.6,5.36474004]
[1743234885978,3.35281032,1883.0,1882.7,5.847944]
[1743234886583,3.35281032,1883.0,1882.7,0.536474]
[1743234886778,3.35281032,1883.0,1882.7,1.366474]
[1743234886982,3.35281032,1883.0,1882.7,6.73107231]
[1743234887303,3.35281032,1883.0,1882.7,6.677964]
[1743234887504,3.35281032,1883.0,1882.7,6.73107236]
[1743234887683,8.66348032,1883.0,1882.7,1.366474]
[1743234889883,8.66348032,1883.0,1882.7,1.4195824]
[1743234890085,3.35281032,1883.0,1882.7,1.4195824]
[1743234890617,5.31051,1883.1,1882.7,1.4195824]
[1743234890618,3.781,1883.2,1882.7,1.4195824]
[1743234890917,8.31011,1883.2,1882.8,5.31101]
[1743234891216,5.31041,1883.1,1882.7,6.14135]
[1743234891416,5.31041,1883.1,1882.7,11.45275]
[1743234891717,5.31041,1883.1,1882.7,6.14135]
[1743234893782,5.31041,1883.1,1882.8,28.113]
[1743234894081,5.31041,1883.1,1882.9,2.55848255]
[1743234896215,11.66292032,1883.2,1882.9,2.55848255]
[1743234896522,16.97326032,1883.2,1882.9,2.55848255]
[1743234896921,11.66292032,1883.2,1882.9,2.55848255]
[1743234897226,5.31039,1883.1,1882.9,2.55848255]
[1743234897986,11.66292032,1883.2,1882.9,2.55848255]
[1743234898191,5.31043,1883.1,1882.9,2.55848255]
[1743234898387,5.31043,1883.1,1882.8,28.113]
[1743234898991,10.62104,1883.1,1882.8,28.113]
[1743234899189,5.3107,1883.0,1882.8,28.113]
[1743234899394,5.31043,1883.1,1882.8,28.113]
[1743234899723,5.31043,1883.1,1882.8,31.11273859]
[1743234900124,7.13381032,1883.2,1882.8,31.11273859]
[1743234900491,12.44402032,1883.2,1882.8,36.42375859]
[1743234900820,6.35281032,1883.2,1882.9,0.83]
[1743234901123,6.35281032,1883.2,1882.9,11.45165]
[1743234901427,6.35281032,1883.2,1882.9,10.39718886]
[1743234901801,5.31,1883.3,1882.9,10.39716886]
[1743234902198,8.66241032,1883.4,1883.0,5.31043]
[1743234902420,8.66241032,1883.4,1883.0,10.62095]
[1743234902610,8.66241032,1883.4,1883.0,10.62091]
[1743234902810,8.66241032,1883.4,1883.1,1.062091]
[1743234903324,3.35281032,1883.4,1883.1,6.372261]
[1743234903626,3.35281032,1883.4,1883.1,10.62044]
[1743234903921,3.35281032,1883.4,1883.2,0.8194]
[1743234907236,3.35281032,1883.4,1883.2,6.12949]
[1743234907433,17.74882032,1883.6,1883.2,6.12949]
[1743234907644,0.5333,1883.8,1883.4,6.12878]
[1743234907843,3.5333,1883.8,1883.5,0.612878]
[1743234908250,8.84176,1883.8,1883.5,0.612878]
[1743234909844,8.30846,1883.8,1883.5,0.612878]
[1743234910649,3.35281032,1883.6,1883.3,10.31981]
[1743234910821,8.66179032,1883.6,1883.3,5.01]
[1743234911022,8.66179032,1883.6,1883.2,6.12945]
[1743234911217,3.35281032,1883.6,1883.2,6.12933]
[1743234911432,3.35281032,1883.6,1883.3,5.30982]
[1743234911714,3.0,1883.8,1883.4,0.530982]
[1743234911935,11.66123032,1883.8,1883.5,0.8194]
[1743234912251,16.96987032,1883.8,1883.4,6.659702]
[1743234913447,3.7779,1883.5,1882.9,4.25643886]
[1743234913646,8.66235032,1883.4,1882.9,5.31069]
[1743234913951,8.66235032,1883.4,1883.0,5.31049]
[1743234914146,3.35281032,1883.4,1883.1,0.8194]
[1743234914321,3.0,1883.5,1883.2,5.31004]
[1743234914523,3.0,1883.5,1883.3,0.531004]
[1743234914750,5.30926,1883.5,1883.1,6.12957]
[1743234915937,8.66199032,1883.6,1883.2,5.3101]
[1743234916143,8.66199032,1883.6,1883.2,10.61987]
[1743234916348,3.35281032,1883.6,1883.2,10.61987]
[1743234916537,3.35281032,1883.6,1883.3,5.30974]
[1743234916753,3.35281032,1883.6,1883.4,0.530974]
[1743234916921,5.30874,1883.7,1883.4,0.530974]
[1743234917351,5.30874,1883.7,1883.3,0.7777]
[1743234917556,5.30874,1883.7,1883.3,6.08751]
[1743234918553,10.61768,1883.7,1883.3,0.7777]
[1743234918753,5.30874,1883.7,1883.3,0.7777]
[1743234919053,5.30874,1883.7,1883.3,6.0875]
[1743234919223,5.30874,1883.7,1883.4,0.60875]
[1743234919646,10.61763,1883.7,1883.4,0.60875]
[1743234919953,5.30874,1883.7,1883.3,0.7777]
[1743234920153,5.30874,1883.7,1883.3,0.83079116]
[1743234920359,10.61755,1883.7,1883.3,6.14061116]
[1743234920652,5.30874,1883.7,1883.3,6.08752]
[1743234920823,10.61755,1883.7,1883.3,6.08752]
[1743234921024,10.61755,1883.7,1883.4,0.608752]
[1743234921223,5.30874,1883.7,1883.4,0.608752]
[1743234921526,10.61769,1883.7,1883.4,0.608752]
[1743234921844,5.30874,1883.7,1883.3,0.7777]
[1743234922847,9.41873032,1883.8,1883.3,11.39719]
[1743234923025,9.41873032,1883.8,1883.4,5.30953]
[1743234923223,14.72731032,1883.8,1883.4,5.36261947]
[1743234924032,5.30872,1883.7,1883.4,0.05308947]
[1743234924232,5.30872,1883.7,1883.4,0.61404995]
[1743234925056,5.30872,1883.7,1883.4,0.66713949]
[1743234925255,3.35281032,1883.6,1883.4,0.66713949]
[1743234925549,3.35281032,1883.6,1883.4,5.97655949]
[1743234925753,0.7575,1883.8,1883.4,5.97655949]
[1743234925956,2.38009074,1884.1,1883.6,6.08659]
[1743234926129,3.88611032,1884.1,1883.7,10.617]
[1743234926850,3.88611032,1884.1,1883.8,5.30836]
[1743234927055,3.88611032,1884.1,1883.8,5.36143826]
[1743234927456,4.43727529,1884.2,1883.9,6.0858]
[1743234927656,3.35281032,1884.2,1883.9,7.225211]
[1743234928154,5.84001,1884.5,1884.0,5.30764]
[1743234928360,5.30677,1884.4,1883.9,1.917111]
[1743234928556,5.30677,1884.4,1884.0,5.30769]
[1743234928724,9.41687032,1884.5,1884.1,5.30751]
[1743234929238,3.35281032,1884.3,1884.1,5.30751]
[1743234929822,3.35281032,1884.3,1884.1,5.36039948]
[1743234930130,3.35281032,1884.5,1884.2,6.62089995]
[1743234930332,3.35281032,1884.5,1884.3,0.05306825]
[1743234930528,3.35281032,1884.5,1884.3,5.35991825]
[1743234930728,3.35281032,1884.5,1884.3,5.30685]
[1743234931761,3.35281032,1884.5,1884.3,10.61373]
[1743234931929,3.35281032,1884.5,1884.4,1.061373]
[1743234932130,3.35281032,1884.5,1884.3,10.61374]
[1743234932460,3.35281032,1884.5,1884.3,5.30685]
[1743234933660,3.35281032,1884.5,1884.3,10.61374]
[1743234933843,3.35281032,1884.5,1884.3,5.30685]
[1743234934043,3.35281032,1884.5,1884.4,5.30672]
[1743234934243,3.35281032,1884.5,1884.4,1.061357]
[1743234934964,0.39386312,1885.3,1884.9,5.30506]
[1743234935162,3.35281032,1885.2,1884.9,6.06796]
[1743234935456,3.35281032,1885.2,1885.0,0.606796]
[1743234935659,3.35281032,1885.2,1885.0,5.911736]
[1743234937160,3.35281032,1885.2,1884.6,5.85616]
[1743234937161,0.7975,1885.1,1884.7,6.06856]
[1743234937363,3.35281032,1885.0,1884.7,5.067]
[1743234937550,3.35281032,1884.8,1884.5,6.06911]
[1743234937750,3.35281032,1884.8,1884.5,6.7821567]
[1743234938353,3.35281032,1885.6,1884.6,0.05305705]
[1743234938535,8.65655032,1885.5,1885.0,11.3725]
[1743234938737,3.35281032,1885.5,1885.1,0.05304041]
[1743234938946,3.35281032,1885.5,1885.2,5.30443]
[1743234939347,3.35281032,1885.5,1885.1,5.35757041]
[1743234939638,3.35281032,1885.5,1885.1,8.77871745]
[1743234940362,8.30354,1885.6,1885.2,5.30444]
[1743234940567,6.10069,1885.7,1885.2,5.30425]
[1743234940870,6.10069,1885.7,1885.2,10.60858]
[1743234941160,5.30354,1885.6,1885.3,1.060858]
[1743234941373,5.30354,1885.6,1885.1,8.72585704]
[1743234941665,5.30354,1885.6,1885.2,5.30446]
[1743234943366,6.10113,1885.5,1885.1,14.03047704]
[1743234943571,0.7975,1885.5,1885.2,5.30444]
[1743234943740,0.7975,1885.5,1885.2,6.7074607]
[1743234944664,6.10113,1885.5,1885.2,1.4030207]
[1743234945578,0.7975,1885.5,1885.2,1.4030207]
[1743234946173,0.7975,1885.5,1885.2,1.45606005]
[1743234947479,0.7975,1885.5,1885.2,6.76049005]
[1743234948080,6.10117,1885.5,1885.2,1.45606005]
[1743234948269,0.7975,1885.5,1885.2,6.76053005]
[1743234948781,0.7975,1885.5,1885.2,1.4030207]
[1743234949081,0.7975,1885.5,1885.1,8.72571704]
[1743234949281,0.7975,1885.5,1885.2,0.05303938]
[1743234949470,0.7975,1885.5,1885.1,14.03025704]
[1743234949672,0.7975,1885.5,1885.1,8.72568704]
[1743234949882,6.10114,1885.5,1885.1,8.72568704]
[1743234950050,6.10114,1885.5,1885.1,5.30454]
[1743234950247,5.30342,1885.6,1884.9,1.08546508]
[1743234950248,5.30489,1885.1,1884.9,1.08546508]
[1743234950585,5.30535,1884.9,1884.5,5.30643]
[1743234950747,9.41694032,1885.0,1884.5,5.30643]
[1743234950952,9.41694032,1885.0,1884.6,0.530643]
[1743234951168,5.30532,1884.9,1884.6,0.530643]
[1743234951351,9.41694032,1885.0,1884.6,0.530643]
[1743234951882,9.41694032,1885.0,1884.6,5.836803]
[1743234953074,9.41694032,1885.0,1884.6,0.530643]
[1743234953480,5.30534,1884.9,1884.6,0.530643]
[1743234954281,5.3056,1884.8,1884.3,11.20643]
[1743234954583,5.30599,1884.7,1884.3,11.20643]
[1743234954885,5.3056,1884.8,1884.3,11.20643]
[1743234955080,5.306,1884.7,1884.3,11.20643]
[1743234955387,5.3062,1884.6,1884.3,0.7865]
[1743234955550,3.35281032,1884.6,1884.3,1.395859]
[1743234956983,3.35281032,1884.6,1884.3,6.75587166]
[1743234957375,5.30721,1884.3,1883.8,6.09475]
[1743234957575,3.35281032,1884.2,1883.8,6.09475]
[1743234957781,3.35281032,1884.2,1883.9,5.3081]
[1743234958691,3.35281032,1884.2,1884.0,0.05307254]
[1743234958896,3.35281032,1884.2,1884.0,0.53611725]
[1743234959060,3.35281032,1884.2,1883.8,6.09475]
[1743234959891,8.66013032,1884.2,1883.8,0.7865]
[1743234960086,9.41923032,1884.2,1883.8,0.7865]
[1743234960298,8.66066032,1884.0,1883.6,39.31855]
[1743234960474,3.35281032,1884.0,1883.7,5.30857]
[1743234960671,3.35281032,1884.0,1883.8,0.530857]
[1743234964001,8.66080032,1884.0,1883.6,28.8987]
[1743234964305,3.35281032,1883.8,1883.6,28.082]
[1743234967205,8.66124032,1883.8,1883.6,28.082]
[1743234967572,13.96988032,1883.8,1883.6,28.082]
[1743234968277,3.35281032,1883.8,1883.6,28.082]
[1743234968588,10.61613,1884.0,1883.6,33.95802942]
[1743234968788,3.35281032,1884.0,1883.6,33.95802942]
[1743234969099,8.66069032,1884.0,1883.6,39.26688942]
[1743234969299,3.35281032,1884.1,1883.8,5.3082]
[1743234969476,8.66040032,1884.1,1883.8,0.8085]
[1743234970703,3.35281032,1884.3,1883.9,5.36095792]
[1743234970888,3.35281032,1884.3,1884.0,5.30782]
[1743234971418,3.35281032,1884.3,1884.0,5.36089197]
[1743234972105,3.35281032,1884.1,1883.8,6.728572]
[1743234974279,3.35281032,1884.1,1883.8,6.728422]
[1743234974479,3.35281032,1884.1,1883.9,0.6728422]
[1743234975113,3.35281032,1884.1,1883.9,6.03400774]
[1743234975410,3.35281032,1884.1,1883.9,0.72591774]
[1743234975589,3.35281032,1884.1,1883.9,6.03392774]
[1743234976311,8.65983032,1884.3,1883.9,6.03392774]
[1743234976474,8.65983032,1884.3,1884.0,0.60339277]
[1743234976680,3.35281032,1884.3,1884.0,5.91114277]
[1743234977103,3.35281032,1884.3,1884.0,5.96421524]
[1743234977509,3.35281032,1884.4,1884.1,6.08567]
[1743234979416,3.35281032,1884.4,1884.2,5.30729]
[1743234979715,3.35281032,1884.4,1884.2,6.45189282]
[1743234980613,3.35281032,1884.4,1884.2,6.50495859]
[1743234981210,3.35281032,1884.4,1884.2,6.45189282]
[1743234982611,8.65906032,1884.6,1884.2,11.75898282]
[1743234982812,8.65906032,1884.6,1884.2,6.45169282]
[1743234983015,8.65906032,1884.6,1884.2,6.50475786]
[1743234985613,8.65906032,1884.6,1884.2,11.81185786]
[1743234985807,8.65906032,1884.6,1884.2,6.45169282]
[1743234986008,13.96545032,1884.6,1884.2,6.50475798]
[1743234986520,3.35281032,1884.6,1884.3,0.6504758]
[1743234986715,3.35281032,1884.6,1884.3,5.9573758]
[1743234987126,3.35281032,1884.6,1884.4,0.8061]
[1743234990991,3.35281032,1884.8,1884.4,0.8061]
[1743234991191,3.35281032,1884.8,1884.5,5.30618]
[1743234991393,8.65845032,1884.8,1884.4,6.11275]
[1743234991592,8.65845032,1884.8,1884.5,0.611275]
[1743234992220,4.15261032,1884.6,1884.1,28.093]
[1743234992421,3.35281032,1884.2,1884.1,28.093]
[1743234993694,8.65964032,1884.4,1884.1,28.093]
[1743234994195,3.35281032,1884.4,1884.1,28.093]
[1743234994598,3.35281032,1884.4,1884.1,33.40053]
[1743234994795,3.35281032,1884.4,1884.2,3.340053]
[1743234995821,8.65965032,1884.4,1884.2,3.340053]
[1743234996122,13.96664032,1884.4,1884.1,28.093]
[1743234996824,8.65965032,1884.4,1884.1,28.093]
[1743234997719,3.35281032,1884.4,1884.1,28.093]
[1743234997929,5.30665,1884.5,1884.1,38.70787]
[1743234998126,5.30622,1884.6,1884.2,5.36033874]
[1743234998426,5.30553,1884.9,1884.5,5.30638]
[1743234998613,9.47140334,1885.0,1884.6,6.13564]
[1743234998815,8.67160334,1885.0,1884.6,6.1886954]
[1743234999613,8.67160334,1885.0,1884.6,6.13564]
[1743235001633,8.67160334,1885.0,1884.7,0.05305279]
[1743235001828,8.67160334,1885.0,1884.7,0.67192207]
[1743235002223,8.67160334,1885.0,1884.7,0.61886928]
[1743235003027,8.67160334,1885.0,1884.7,0.67192209]
[1743235003633,5.31879302,1885.0,1884.7,0.67192209]
[1743235004012,8.67160334,1885.0,1884.7,0.61886928]
[1743235005434,13.97687334,1885.0,1884.7,0.61886928]
[1743235005638,3.35281032,1884.9,1884.6,1.90114703]
[1743235005928,8.65819032,1884.9,1884.6,0.8295]
[1743235006106,8.65856032,1884.8,1884.5,0.8295]
[1743235007135,3.35281032,1884.8,1884.5,6.1359]
[1743235009233,5.30538,1884.9,1884.5,6.1359]
[1743235009439,5.30538,1884.9,1884.6,0.61359]
[1743235011136,8.65791032,1885.0,1884.6,0.61359]
[1743235011332,13.96317032,1885.0,1884.6,0.61359]
[1743235012139,5.30537,1884.9,1884.6,0.61359]
[1743235013527,13.96306032,1885.0,1884.6,5.91973]
[1743235013707,13.96306032,1885.0,1884.7,0.591973]
[1743235013912,13.96315032,1885.0,1884.7,0.591973]
[1743235014739,5.30532,1884.9,1884.7,0.591973]
[1743235014932,3.35281032,1884.8,1884.6,0.61359]
[1743235020718,3.35281032,1884.8,1884.6,5.91964]
[1743235023572,3.35281032,1884.8,1884.6,0.61359]
[1743235025434,3.35281032,1884.8,1884.5,33.39023]
[1743235028030,3.35281032,1884.6,1884.5,28.084]
[1743235034735,8.65897032,1884.6,1884.5,28.084]
[1743235034941,8.65897032,1884.6,1884.3,0.755]
[1743235036437,8.65897032,1884.6,1884.3,0.80806256]
[1743235036769,8.65897032,1884.6,1884.3,0.05306256]
[1743235037667,8.65897032,1884.6,1884.3,5.36007256]
[1743235038568,3.35281032,1884.6,1884.3,5.36007256]
[1743235038750,3.35281032,1884.6,1884.4,0.53600726]
[1743235039072,3.35281032,1884.6,1884.3,5.35986256]
[1743235039573,3.35281032,1884.6,1884.3,10.66669256]
[1743235039745,3.35281032,1884.6,1884.3,5.3068]
[1743235040042,3.35281032,1884.6,1884.3,5.35986266]
[1743235040964,9.49053032,1884.8,1884.4,5.30668]
[1743235042067,5.3059,1884.7,1884.4,5.30668]
[1743235042453,5.3059,1884.7,1884.3,5.35993262]
[1743235042773,3.35281032,1884.8,1884.4,6.12104]
[1743235043077,5.30547,1884.9,1884.5,5.35924593]
[1743235043643,4.15601032,1885.0,1884.5,5.35940593]
[1743235043865,4.15601032,1885.0,1884.5,5.30635]
[1743235044172,9.46105032,1885.0,1884.6,6.12043]
[1743235044373,9.46105032,1885.0,1884.6,7.764908]
[1743235047076,9.46105032,1885.0,1884.6,7.81792174]
[1743235047573,9.46105032,1885.0,1884.6,13.12396174]
[1743235047776,9.46105032,1885.0,1884.6,7.764868]
[1743235047949,3.35281032,1885.0,1884.7,5.30586]
[1743235048272,8.65786032,1885.0,1884.6,7.764868]
[1743235048474,3.35281032,1885.0,1884.7,6.0822868]
[1743235048675,3.35281032,1885.0,1884.7,0.7764868]
[1743235048877,8.65788032,1885.0,1884.7,0.7764868]
[1743235050372,3.35281032,1885.0,1884.7,6.0823268]
[1743235050776,8.65787032,1885.0,1884.7,0.7764868]
[1743235051378,8.65763032,1885.1,1884.7,6.0823568]
[1743235051942,8.65763032,1885.1,1884.8,0.60823568]
[1743235051943,8.65757032,1885.1,1884.8,0.60823568]
[1743235054054,8.65778032,1885.1,1884.8,0.60823568]
[1743235054544,13.96266032,1885.1,1884.8,0.60823568]
[1743235054747,13.96266032,1885.1,1884.7,6.0821768]
[1743235054960,8.65769032,1885.1,1884.7,6.0821768]
[1743235056202,3.35281032,1885.1,1884.8,5.30558]
[1743235056481,8.65760032,1885.1,1884.7,6.0821768]
[1743235057056,13.96259032,1885.1,1884.7,6.0821768]
[1743235058561,5.30505,1885.0,1884.7,6.0821768]
[1743235059169,8.65760032,1885.1,1884.7,11.3878368]
[1743235059365,5.71133776,1885.3,1884.7,11.3878368]
[1743235059366,3.35281032,1885.3,1884.9,0.7862]
[1743235059619,9.48358334,1885.6,1885.2,0.7862]
[1743235059892,11.42256,1885.3,1884.9,5.002]
[1743235060489,6.11813,1885.3,1884.9,5.002]
[1743235060698,11.42258,1885.3,1884.9,6.641898]
[1743235060892,3.35281032,1885.2,1884.9,6.641898]
[1743235061115,8.65729032,1885.2,1884.9,6.641898]
[1743235061298,5.30476,1885.1,1884.7,6.0823168]
[1743235061975,4.13891032,1885.0,1884.7,6.0823168]
[1743235062598,4.13891032,1885.0,1884.7,6.13536812]
[1743235062770,4.13891032,1885.0,1884.7,6.0823168]
[1743235063569,9.44399032,1885.0,1884.7,0.7764868]
[1743235063872,14.74926032,1885.0,1884.7,0.7764868]
[1743235064072,3.35281032,1884.8,1884.7,0.7764868]
[1743235067300,9.44399032,1885.0,1884.7,0.7764868]
[1743235068072,4.13891032,1885.0,1884.7,6.0822368]
[1743235069995,4.13891032,1885.0,1884.7,6.8716368]
[1743235070870,9.44398032,1885.0,1884.7,0.7764868]
[1743235071074,9.44398032,1885.0,1884.6,36.868706]
[1743235074107,9.44398032,1885.0,1884.6,8.784706]
[1743235074887,9.44398032,1885.0,1884.6,7.739968]
[1743235076010,9.44398032,1885.0,1884.6,1.644478]
[1743235076225,0.8309,1884.7,1884.5,28.081]
[1743235076429,3.35281032,1884.6,1884.5,28.081]
[1743235080982,8.65897032,1884.6,1884.5,28.081]
[1743235083284,9.46847032,1884.6,1884.5,28.081]
[1743235085978,4.16231032,1884.6,1884.5,28.081]
[1743235086380,9.46847032,1884.6,1884.5,28.081]
[1743235090416,4.16231032,1884.6,1884.5,28.081]
[1743235090715,9.46847032,1884.6,1884.5,28.081]
[1743235091023,3.35281032,1884.6,1884.5,28.081]
[1743235091314,5.30593,1884.7,1884.5,28.081]
[1743235091691,9.48172334,1884.8,1884.5,28.081]
[1743235093212,9.48172334,1884.8,1884.4,5.30659]
[1743235093418,9.48172334,1884.8,1884.4,6.450989]
[1743235093783,14.78758334,1884.8,1884.4,6.450989]
[1743235094190,14.78758334,1884.8,1884.4,6.50405052]
[1743235094615,9.48172334,1884.8,1884.4,6.50405052]
[1743235094816,4.17593334,1884.8,1884.5,5.30643]
[1743235095021,4.17593334,1884.8,1884.5,1.18104805]
[1743235095204,9.48155334,1884.8,1884.5,1.18104805]
[1743235095405,9.48155334,1884.8,1884.4,5.30656]
[1743235095816,9.48155334,1884.8,1884.4,5.3596215]
[1743235096016,9.48155334,1884.8,1884.4,10.6661415]
[1743235096215,9.48167334,1884.8,1884.4,5.30652]
[1743235096418,9.48167334,1884.8,1884.4,10.66610142]
[1743235096704,9.48167334,1884.8,1884.5,6.37305014]
[1743235097626,3.36643334,1884.8,1884.5,6.37305014]
[1743235098217,3.36643334,1884.8,1884.5,1.06661014]
[1743235098418,3.36643334,1884.8,1884.4,5.35958148]
[1743235098419,8.67206334,1884.8,1884.4,5.35958148]
[1743235098733,8.67206334,1884.8,1884.4,10.66619148]
[1743235098897,8.65844032,1884.8,1884.4,10.61313]
[1743235099222,8.65844032,1884.8,1884.4,5.30652]
[1743235099429,8.65844032,1884.8,1884.4,10.66612145]
[1743235099601,8.65844032,1884.8,1884.4,11.87026088]
[1743235100129,3.35281032,1884.8,1884.5,5.30641]
[1743235102627,5.30451,1885.2,1884.5,5.30641]
[1743235102628,5.8974262,1885.4,1884.5,4.992]
[1743235102816,0.7815,1885.2,1884.8,5.30554]
[1743235103021,2.00295846,1885.1,1884.8,5.30554]
[1743235103699,2.00295846,1885.0,1884.8,5.30554]
[1743235106803,2.00295846,1885.1,1884.8,5.30554]
[1743235107002,9.42447089,1885.2,1884.8,5.30554]
[1743235107318,9.42447089,1885.2,1884.8,5.20554]
[1743235107519,10.89733698,1885.2,1884.8,5.20554]
[1743235109934,5.59283698,1885.2,1884.8,5.20554]
[1743235110130,4.11997089,1885.2,1884.9,5.30528]
[1743235110301,0.7815,1885.2,1884.8,6.12286]
[1743235110505,0.7815,1885.2,1884.9,5.3052]
[1743235111438,8.64267089,1885.3,1884.9,5.3052]
[1743235113137,5.3042,1885.3,1884.9,5.3052]
[1743235113342,8.64267089,1885.3,1884.9,5.3052]
[1743235113637,13.94708089,1885.3,1884.9,5.3052]
[1743235114062,8.64297089,1885.2,1884.8,6.12286]
[1743235114535,8.64297089,1885.2,1884.8,7.20566897]
[1743235114742,13.94769089,1885.2,1884.8,6.12286]
[1743235114943,14.75529089,1885.2,1884.8,6.12286]
[1743235115739,9.45057089,1885.2,1884.8,6.12286]
[1743235116338,8.64297089,1885.2,1884.8,12.571123]
[1743235116845,3.33847089,1885.2,1884.9,5.30526]
[1743235124918,8.64296089,1885.2,1884.9,5.30526]
[1743235125245,8.64296089,1885.2,1884.8,7.17943591]
[1743235125746,8.64296089,1885.2,1884.8,6.12279]
[1743235127048,2.00293193,1885.1,1884.8,6.12279]
[1743235127217,2.00293193,1885.1,1884.8,9.88491741]
[1743235128249,2.00293193,1885.1,1884.9,5.30531]
[1743235128618,13.78146071,1885.3,1884.9,5.30531]
[1743235128619,2.00293193,1885.2,1884.9,5.30531]
[1743235131018,2.00293193,1885.1,1884.9,5.30531]
[1743235131844,7.30741193,1885.2,1884.9,5.30531]
[1743235132757,7.30741193,1885.2,1884.8,7.17576308]
[1743235132959,2.83293193,1885.1,1884.7,33.38587]
[1743235133167,2.00293193,1884.9,1884.7,33.38587]
[1743235133530,2.00293193,1884.9,1884.7,28.08]
[1743235133725,7.30801193,1885.0,1884.7,33.38588]
[1743235133931,2.83293193,1885.1,1884.7,37.332172]
[1743235134232,2.83293193,1885.1,1884.9,5.30532]